fUST/lending_fUST_20251012
["ID","MTS","AMOUNT","RATE_DAILY","PERIOD"]
[390965090,1760235043853,-500.0,0.00023973,2]
[390965091,1760235043863,-255.85980242,0.00023973,2]
[390965092,1760235043872,-189.91203259,0.00023973,2]
[390965093,1760235043881,-170.595212,0.00023973,2]
[390965094,1760235043891,-500.0,0.00023973,2]
[390965095,1760235043901,-500.0,0.00023973,2]
[390965096,1760235043911,-500.0,0.00023973,2]
[390965097,1760235043920,-503.78777992,0.00023973,2]
[390965098,1760235043931,-501.9676903,0.00023973,2]
[390965099,1760235043940,-500.0,0.00023973,2]
[390965100,1760235043949,-24999.99,0.00024,2]
[390965101,1760235043958,-24999.99,0.00024,2]
[390965102,1760235043968,-24999.99,0.00024,2]
[390965103,1760235043977,-25000.0,0.00024,2]
[390965104,1760235043986,-20900.98,0.00024,2]
[390965105,1760235043995,-15256.39,0.00024,2]
[390965106,1760235044004,-24999.98,0.00024,2]
[390965107,1760235044014,-25000.0,0.00024,2]
[390965108,1760235044023,-24999.98,0.00024,2]
[390965109,1760235044032,-1051.0,0.00024063,2]
[390965110,1760235044041,-1051.0,0.00024078,2]
[390965111,1760235044050,-1051.0,0.00024176,2]
[390965112,1760235044060,-1051.0,0.00024187,2]
[390965113,1760235044069,-3762.77520447,0.0002429,2]
[390965114,1760235044079,-421.43063414,0.00024306,2]
[390965115,1760235044088,-632.76,0.00024358,2]
[390965116,1760235044098,-28657.87693564,0.00024502,3]
[390965117,1760235044107,-298.14195131,0.00024502,3]
[390965118,1760235044116,-260.0,0.00024506,2]
[390965119,1760235044126,-151.85010789,0.00024516,2]
[390965120,1760235044136,-2000.0,0.00024516,2]
[390965121,1760235044145,-2012.99096655,0.00024516,2]
[390965122,1760235044154,-1000.0,0.00024521,2]
[390965123,1760235044163,-1000.0,0.00024521,2]
[390965124,1760235044174,-1000.0,0.00024521,2]
[390965125,1760235044183,-1000.0,0.00024521,2]
[390965126,1760235044192,-502.51841808,0.00024521,2]
[390965127,1760235044202,-1006.85560792,0.00024521,2]
[390965128,1760235044211,-1051.0,0.00024529,2]
[390965129,1760235044220,-1051.0,0.00024574,2]
[390965130,1760235044228,-1051.0,0.00024589,2]
[390965131,1760235044238,-720.0,0.0002459,20]
[390965132,1760235044247,-162.51263029,0.00024603,2]
[390965133,1760235044257,-666.66666667,0.00024603,2]
[390965134,1760235044267,-666.66666667,0.00024603,2]
[390965135,1760235044276,-380.0,0.00024658,2]
[390965136,1760235044285,-1051.0,0.00024685,2]
[390965137,1760235044295,-666.66666667,0.00024751,4]
[390965138,1760235044304,-1051.0,0.00024757,2]
[390965139,1760235044314,-416.594,0.00024791,8]
[390965140,1760235044323,-8119.125236,0.000248,2]
[390965141,1760235044333,-150.0,0.00024873,2]
[390965142,1760235044342,-161.56829326,0.00024873,2]
[390965143,1760235044352,-187.65763811,0.00024873,2]
[390965144,1760235044361,-666.66666667,0.00024899,6]
[390965145,1760235044370,-666.66666667,0.00024899,6]
[390965146,1760235044379,-666.66666667,0.00024899,6]
[390965147,1760235044388,-645.29973405,0.000249,2]
[390965148,1760235044398,-439126.353103,0.000249,2]
[390965149,1760235044407,-460.93975609,0.00024906,2]
[390965150,1760235044415,-1051.0,0.00024911,2]
[390965151,1760235044424,-160.0,0.00024999,2]
[390965152,1760235044433,-160.0,0.00024999,2]
[390965153,1760235044443,-417.15472785,0.00024999,2]
[390965154,1760235044454,-298.14195131,0.00024999,2]
[390965155,1760235044464,-177.59461823,0.00025,2]
[390965156,1760235044473,-192.63635957,0.00025,2]
[390965157,1760235044482,-6754.58518734,0.00025,2]
[390965158,1760235044492,-216.57703933,0.00025,2]
[390965159,1760235044503,-152057.0,0.00025,30]
[390965160,1760235044512,-500.0,0.00025,9]
[390965161,1760235044521,-160.0,0.00025,2]
[390965162,1760235044531,-473.8695496,0.00025,2]
[390965163,1760235044540,-1343.35228811,0.00025,2]
[390965164,1760235044549,-1567.9519887,0.00025012,2]
[390965165,1760235044559,-666.66666667,0.00025047,8]
[390965166,1760235044568,-666.66666667,0.00025047,8]
[390965167,1760235044577,-360.0,0.00025054,2]
[390965168,1760235044587,-2500.0,0.00025064,2]
[390965169,1760235044596,-505.15928884,0.00025068,2]
[390965170,1760235044605,-501.19283632,0.00025068,2]
[390965171,1760235044614,-1500.0,0.00025068,2]
[390965172,1760235044623,-1500.0,0.00025068,2]
[390965173,1760235044633,-1051.0,0.00025093,2]
[390965174,1760235044642,-1051.0,0.00025161,2]
[390965175,1760235044651,-666.66666667,0.00025195,10]
[390965176,1760235044660,-666.66666667,0.00025195,10]
[390965177,1760235044669,-666.66666667,0.00025195,10]
[390965178,1760235044680,-192.63635957,0.000252,2]
[390965179,1760235044689,-6754.58518734,0.000252,2]
[390965180,1760235044699,-216.57703933,0.000252,2]
[390965181,1760235044709,-645.29973405,0.000252,2]
[390965182,1760235044718,-160.0,0.000252,2]
[390965183,1760235044727,-473.8695496,0.000252,2]
[390965184,1760235044736,-1343.35228811,0.000252,2]
[390965185,1760235044745,-1051.0,0.00025234,2]
[390965186,1760235044754,-723.16,0.0002526,2]
[390965187,1760235044763,-156.61599044,0.00025276,7]
[390965188,1760235044772,-666.66666667,0.00025343,12]
[390965189,1760235044781,-666.66666667,0.00025343,12]
[390965190,1760235044791,-666.66666667,0.00025343,12]
[390965191,1760235044800,-645.29973405,0.000254,2]
[390965192,1760235044809,-778.66231413,0.00025416,2]
[390965193,1760235044818,-300.0,0.00025421,2]
[390965194,1760235044827,-666.66666667,0.00025491,14]
[390965195,1760235044836,-666.66666667,0.00025491,14]
[390965196,1760235044845,-666.66666667,0.00025491,14]
[390965197,1760235044855,-192.63635957,0.000255,2]
[390965198,1760235044863,-6754.58518734,0.000255,2]
[390965199,1760235044872,-473.8695496,0.000255,2]
[390965200,1760235044881,-1343.35228811,0.000255,2]
[390965201,1760235044891,-500.44887804,0.00025506,2]
[390965202,1760235044899,-460.0,0.00025602,2]
[390965203,1760235044909,-500.0,0.00025608,2]
[390965204,1760235044918,-500.0,0.00025608,2]
[390965205,1760235044927,-1935.44715255,0.00025612,2]
[390965206,1760235044937,-1509.95864256,0.00025616,2]
[390965207,1760235044946,-2000.0,0.00025616,2]
[390965208,1760235044955,-666.66666667,0.00025639,16]
[390965209,1760235044964,-666.66666667,0.00025639,16]
[390965210,1760235044973,-666.66666667,0.00025639,16]
[390965211,1760235044982,-504.78424507,0.00025668,7]
[390965212,1760235044992,-192.63635957,0.000257,2]
[390965213,1760235045001,-6754.58518734,0.000257,2]
[390965214,1760235045010,-645.29973405,0.000257,2]
[390965215,1760235045020,-666.66666667,0.00025787,18]
[390965216,1760235045030,-666.66666667,0.00025787,18]
[390965217,1760235045039,-666.66666667,0.00025787,18]
[390965218,1760235045048,-666.66666667,0.00025787,18]
[390965219,1760235045058,-473.8695496,0.000258,2]
[390965220,1760235045067,-1343.35228811,0.000258,2]
[390965221,1760235045076,-587.0,0.00025871,2]
[390965222,1760235045085,-2351.0,0.00025873,2]
[390965223,1760235045095,-645.29973405,0.000259,2]
[390965224,1760235045104,-666.66666667,0.00025934,20]
[390965225,1760235045113,-666.66666667,0.00025934,20]
[390965226,1760235045123,-666.66666667,0.00025934,20]
[390965227,1760235045132,-666.66666667,0.00025934,20]
[390965228,1760235045141,-176.72792493,0.00025962,5]
[390965229,1760235045151,-450.0,0.00025968,2]
[390965230,1760235045160,-192.63635957,0.00026,2]
[390965231,1760235045170,-6754.58518734,0.00026,2]
[390965232,1760235045180,-473.8695496,0.00026,2]
[390965233,1760235045189,-1343.35228811,0.00026,2]
[390965234,1760235045199,-12983.35,0.00026027,2]
[390965235,1760235045208,-666.66666667,0.00026082,22]
[390965236,1760235045218,-539.95799999,0.00026106,2]
[390965237,1760235045227,-500.0,0.00026106,2]
[390965238,1760235045237,-445.14539137,0.00026106,2]
[390965239,1760235045246,-2351.0,0.00026115,2]
[390965240,1760235045256,-560.0,0.0002615,2]
[390965241,1760235045265,-501.32292699,0.00026156,2]
[390965242,1760235045274,-1000.0,0.00026156,2]
[390965243,1760235045283,-813.55,0.00026162,2]
[390965244,1760235045293,-2500.0,0.00026164,2]
[390965245,1760235045302,-6754.58518734,0.000262,2]
[390965246,1760235045312,-666.66666667,0.00026378,26]
[390965247,1760235045333,-6754.58518734,0.000265,2]
[390965248,1760235045343,-600.0,0.00026516,2]
[390965249,1760235045353,-666.66666667,0.00026526,28]
[390965250,1760235045362,-150.0,0.00026672,7]
[390965251,1760235045372,-162.51263029,0.00026674,30]
[390965252,1760235045381,-162.51263029,0.00026674,30]
[390965253,1760235045391,-660.0,0.00026698,2]
[390965254,1760235045400,-1001.37887223,0.00026704,2]
[390965255,1760235045410,-579.46712194,0.00026706,2]
[390965256,1760235045420,-3000.0,0.00026712,2]
[390965257,1760235045432,-176.72792493,0.00026767,5]
[390965258,1760235045442,-6754.58518734,0.000268,2]
[390965259,1760235045451,-179.56903432,0.00026852,2]
[390965260,1760235045466,-2973.19782987,0.000269,2]
[390965261,1760235045476,-6754.58518734,0.00027,2]
[390965262,1760235045486,-203.51087,0.00027,120]
[390965263,1760235045495,-864.0,0.00027049,30]
[390965264,1760235045506,-903.94,0.00027064,2]
[390965265,1760235045516,-150.67888213,0.00027064,2]
[390965266,1760235045527,-1103.19,0.00027123,10]
[390965267,1760235045539,-1103.19,0.00027123,10]
[390965268,1760235045548,-1103.19,0.00027123,10]
[390965269,1760235045558,-1103.19,0.00027123,10]
[390965270,1760235045568,-1103.19,0.00027123,10]
[390965271,1760235045578,-1103.19,0.00027123,10]
[390965272,1760235045588,-1103.19,0.00027123,10]
[390965273,1760235045598,-1103.19,0.00027123,10]
[390965274,1760235045607,-1103.19,0.00027123,10]
[390965275,1760235045617,-1103.19,0.00027123,10]
[390965276,1760235045626,-1103.19,0.00027123,10]
[390965277,1760235045636,-1103.19,0.00027123,10]
[390965278,1760235045646,-1103.19,0.00027123,10]
[390965279,1760235045656,-1103.19,0.00027123,10]
[390965280,1760235045666,-1103.19,0.00027123,10]
[390965281,1760235045678,-1103.19,0.00027123,10]
[390965282,1760235045689,-1103.19,0.00027123,10]
[390965283,1760235045699,-1103.19,0.00027123,10]
[390965284,1760235045710,-1103.19,0.00027123,10]
[390965285,1760235045719,-1103.19,0.00027123,10]
[390965286,1760235045729,-1103.19,0.00027123,10]
[390965287,1760235045739,-1103.19,0.00027123,10]
[390965288,1760235045749,-1103.19,0.00027123,10]
[390965289,1760235045759,-1103.19270517,0.00027123,10]
[390965290,1760235045768,-1567.9519887,0.000272,10]
[390965291,1760235045778,-710.42595223,0.00027246,2]
[390965292,1760235045788,-3500.0,0.0002726,2]
[390965293,1760235045797,-6754.58518734,0.000273,2]
[390965294,1760235045807,-3000.0,0.000273,2]
[390965295,1760235045817,-618.97624389,0.00027306,2]
[390965296,1760235045827,-3000.0,0.0002731,2]
[390965297,1760235045837,-3000.0,0.0002732,2]
[390965298,1760235045846,-3000.0,0.0002733,2]
[390965299,1760235045856,-3000.0,0.0002734,2]
[390965300,1760235045866,-3000.0,0.0002735,2]
[390965301,1760235045875,-3000.0,0.0002736,2]
[390965302,1760235045884,-3000.0,0.0002737,2]
[390965303,1760235045893,-3000.0,0.0002738,2]
[390965304,1760235045903,-3000.0,0.0002739,2]
[390965305,1760235045912,-1000.0,0.00027397,30]
[390965306,1760235045921,-1000.0,0.00027397,30]
[390965307,1760235045932,-1000.0,0.00027397,30]
[390965308,1760235045942,-1000.0,0.00027397,30]
[390965309,1760235045951,-1000.0,0.00027397,30]
[390965310,1760235045960,-1127.84693006,0.00027397,30]
[390965311,1760235045970,-12983.35,0.00027397,4]
[390965312,1760235045980,-500.3648731,0.00027397,5]
[390965313,1760235045989,-3000.0,0.000274,2]
[390965314,1760235046000,-6954.26,0.000274,2]
[390965315,1760235046011,-3030.97,0.000274,2]
[390965316,1760235046020,-3000.0,0.0002741,2]
[390965317,1760235046030,-3000.0,0.0002742,2]
[390965318,1760235046039,-3000.0,0.0002743,2]
[390965319,1760235046049,-3000.0,0.0002744,2]
[390965320,1760235046058,-3000.0,0.0002745,2]
[390965321,1760235046068,-3000.0,0.0002746,2]
[390965322,1760235046077,-3000.0,0.0002747,2]
[390965323,1760235046087,-187.82826925,0.00027473,5]
[390965324,1760235046096,-3000.0,0.0002748,2]
[390965325,1760235046105,-3000.0,0.0002749,2]
[390965326,1760235046115,-151.97,0.00027493,15]
[390965327,1760235046124,-3000.0,0.000275,2]
[390965328,1760235046134,-3000.0,0.0002751,2]
[390965329,1760235046143,-3000.0,0.0002752,2]
[390965330,1760235046152,-3000.0,0.0002753,2]
[390965331,1760235046161,-3000.0,0.0002754,2]
[390965332,1760235046171,-3000.0,0.0002755,2]
[390965333,1760235046181,-3000.0,0.0002756,2]
[390965334,1760235046191,-3000.0,0.0002757,2]
[390965335,1760235046200,-3000.0,0.0002758,2]
[390965336,1760235046210,-3000.0,0.0002759,2]
[390965337,1760235046219,-151.97,0.00027593,15]
[390965338,1760235046229,-176.72792493,0.00027594,5]
[390965339,1760235046238,-3000.0,0.000276,2]
[390965340,1760235046247,-3000.0,0.0002761,2]
[390965341,1760235046256,-5611.964905,0.0002762,2]
[390965342,1760235046266,-159.347131,0.00027628,20]
[390965343,1760235046275,-151.97,0.00027693,15]
[390965344,1760235046284,-151.97,0.00027793,15]
[390965345,1760235046293,-154.0,0.000278,120]
[390965346,1760235046303,-4000.0,0.00027808,5]
[390965347,1760235046312,-151.97,0.00027893,15]
[390965348,1760235046322,-658.48536584,0.00027906,2]
[390965349,1760235046332,-151.97,0.00027993,15]
[390965350,1760235046341,-778.66231413,0.00028059,2]
[390965351,1760235046351,-151.97,0.00028093,15]
[390965352,1760235046360,-823.0,0.00028116,2]
[390965353,1760235046370,-2305.0,0.00028118,2]
[390965354,1760235046379,-156.421618,0.00028171,20]
[390965355,1760235046389,-159.347131,0.00028171,20]
[390965356,1760235046398,-500.0,0.00028192,10]
[390965357,1760235046408,-151.97,0.00028193,15]
[390965358,1760235046417,-151.97,0.00028293,15]
[390965359,1760235046426,-2033.21777468,0.00028356,5]
[390965360,1760235046436,-151.97,0.00028393,15]
[390965361,1760235046445,-151.97,0.00028493,15]
[390965362,1760235046456,-697.99448779,0.00028506,2]
[390965363,1760235046469,-500.0,0.00028511,10]
[390965364,1760235046479,-1391.0,0.00028514,2]
[390965365,1760235046488,-151.97,0.00028593,15]
[390965366,1760235046499,-151.97,0.00028693,15]
[390965367,1760235046509,-12983.35,0.00028767,6]
[390965368,1760235046518,-151.97,0.00028793,15]
[390965369,1760235046528,-151.97,0.00028893,15]
[390965370,1760235046539,-151.97,0.00028993,15]
[390965371,1760235046548,-3030.97,0.00029,2]
[390965372,1760235046558,-151.97,0.00029093,15]
[390965373,1760235046567,-737.50360974,0.00029106,2]
[390965374,1760235046576,-151.97,0.00029193,15]
[390965375,1760235046586,-151.97,0.00029293,15]
[390965376,1760235046595,-159.347131,0.00029324,3]
[390965377,1760235046605,-151.98715478,0.00029393,15]
[390965378,1760235046614,-250.61241718,0.00029622,2]
[390965379,1760235046624,-777.01273169,0.00029706,2]
[390965380,1760235046633,-1000.0,0.00029754,30]
[390965381,1760235046644,-1000.0,0.000298,30]
[390965382,1760235046653,-981.484,0.00029876,2]
[390965383,1760235046663,-632.99,0.00029884,2]
[390965384,1760235046672,-2167.202,0.00029884,2]
[390965385,1760235046682,-4197.0,0.00029884,2]
[390965386,1760235046692,-58000.0,0.0003,30]
[390965387,1760235046701,-1567.9519887,0.0003,3]
[390965388,1760235046711,-1567.9519887,0.0003,3]
[390965389,1760235046721,-312.0,0.0003,120]
[390965390,1760235046730,-344.05342886,0.00030134,24]
[390965391,1760235046740,-181.66,0.00030136,120]
[390965392,1760235046749,-12983.35,0.00030136,8]
[390965393,1760235046758,-181.66,0.00030273,120]
[390965394,1760235046768,-500.0,0.00030285,10]
[390965395,1760235046777,-150.0,0.00030285,2]
[390965396,1760235046786,-250.0,0.00030285,10]
[390965397,1760235046796,-250.0,0.00030285,10]
[390965398,1760235046805,-250.0,0.00030285,10]
[390965399,1760235046815,-498.161263,0.00030285,10]
[390965400,1760235046824,-10000.0,0.00030285,2]
[390965401,1760235046834,-7306.0,0.00030285,2]
[390965402,1760235046843,-816.52185364,0.00030306,2]
[390965403,1760235046853,-181.66,0.0003041,120]
[390965404,1760235046863,-500.0,0.00030536,5]
[390965405,1760235046872,-181.66,0.00030547,120]
[390965406,1760235046882,-1152.0,0.00030556,2]
[390965407,1760235046892,-181.66,0.00030684,120]
[390965408,1760235046901,-609.42,0.00030684,14]
[390965409,1760235046912,-778.66231413,0.00030701,2]
[390965410,1760235046922,-181.66,0.00030821,120]
[390965411,1760235046932,-150.153,0.00030836,2]
[390965412,1760235046942,-150.0,0.00030836,2]
[390965413,1760235046951,-856.03097559,0.00030906,2]
[390965414,1760235046960,-181.66,0.00030958,120]
[390965415,1760235046970,-1567.9519887,0.00031,10]
[390965416,1760235046980,-298.14195131,0.00031,10]
[390965417,1760235046990,-181.66,0.00031095,120]
[390965418,1760235046999,-181.66,0.00031232,120]
[390965419,1760235047009,-609.42,0.00031232,15]
[390965420,1760235047019,-159.347131,0.00031283,10]
[390965421,1760235047028,-181.66,0.00031369,120]
[390965422,1760235047038,-3030.97,0.000314,2]
[390965423,1760235047047,-239.82520472,0.000314,2]
[390965424,1760235047057,-74183.6579,0.00031444,2]
[390965425,1760235047066,-6954.26,0.000315,2]
[390965426,1760235047076,-181.66,0.00031506,120]
[390965427,1760235047086,-12983.35,0.00031506,10]
[390965428,1760235047095,-895.54009754,0.00031506,2]
[390965429,1760235047105,-156.421618,0.00031586,3]
[390965430,1760235047115,-159.347131,0.00031586,3]
[390965431,1760235047124,-154.0,0.000316,120]
[390965432,1760235047133,-181.66,0.00031643,120]
[390965433,1760235047143,-159.347131,0.00031644,9]
[390965434,1760235047152,-181.66,0.0003178,120]
[390965435,1760235047162,-609.42,0.0003178,16]
[390965436,1760235047171,-181.66,0.00031917,120]
[390965437,1760235047281,-198.0,0.0003199,30]
[390965438,1760235047303,-1000.0,0.00032,60]
[390965439,1760235047312,-1567.9519887,0.00032,10]
[390965440,1760235047321,-181.66,0.00032054,120]
[390965441,1760235047331,-935.04921949,0.00032106,2]
[390965442,1760235047340,-500.0,0.00032143,5]
[390965443,1760235047349,-1100.0,0.00032156,7]
[390965444,1760235047358,-1694.324388,0.00032157,2]
[390965445,1760235047367,-181.66,0.00032191,120]
[390965446,1760235047376,-181.66,0.00032328,120]
[390965447,1760235047385,-609.42,0.00032328,17]
[390965448,1760235047394,-181.66,0.00032465,120]
[390965449,1760235047403,-181.66,0.00032602,120]
[390965450,1760235047411,-974.55834144,0.00032706,2]
[390965451,1760235047421,-1000.0,0.00032729,30]
[390965452,1760235047431,-244.0,0.00032729,30]
[390965453,1760235047441,-181.66,0.00032739,120]
[390965454,1760235047451,-156.421618,0.00032808,2]
[390965455,1760235047463,-159.347131,0.00032808,2]
[390965456,1760235047473,-181.66,0.00032876,120]
[390965457,1760235047482,-609.42,0.00032876,18]
[390965458,1760235047492,-12983.35,0.00032876,120]
[390965459,1760235047502,-981.0,0.00032876,2]
[390965460,1760235047512,-161.33156959,0.00032877,2]
[390965461,1760235047521,-630.0,0.00032884,2]
[390965462,1760235047533,-2160.0,0.00032884,2]
[390965463,1760235047542,-1100.0,0.00032978,7]
[390965464,1760235047551,-807.52882677,0.00032987,2]
[390965465,1760235047563,-1567.9519887,0.00033,120]
[390965466,1760235047573,-1567.9519887,0.00033,30]
[390965467,1760235047582,-181.66,0.00033013,120]
[390965468,1760235047591,-181.66,0.0003315,120]
[390965469,1760235047600,-1437.02381772,0.00033166,2]
[390965470,1760235047610,-3030.97,0.000332,2]
[390965471,1760235047619,-286.42831924,0.000332,117]
[390965472,1760235047628,-767.0,0.00033207,2]
[390965473,1760235047637,-181.75436774,0.00033287,120]
[390965474,1760235047646,-1014.06746339,0.00033306,2]
[390965475,1760235047655,-778.66231413,0.00033344,2]
[390965476,1760235047665,-156.421618,0.00033363,10]
[390965477,1760235047674,-159.347131,0.00033363,10]
[390965478,1760235047684,-2011.0,0.000334,10]
[390965479,1760235047692,-250.0,0.000334,10]
[390965480,1760235047702,-1408942.72023617,0.000334,30]
[390965481,1760235047941,-0.00538447,0.00021907,10]
[390965482,1760235047973,-523.9593771,0.00021907,10]
[390965483,1760235049111,-878.49523843,0.00021907,10]
[390965484,1760235049121,-500.0,0.00021917,2]
[390965485,1760235049131,-500.0,0.00021917,2]
[390965486,1760235049140,-500.0,0.00021917,2]
[390965487,1760235049149,-500.0,0.00021917,2]
[390965488,1760235049158,-500.0,0.00021917,2]
[390965489,1760235049168,-219.7277777,0.00021917,2]
[390965490,1760235049177,-500.0,0.00021917,2]
[390965491,1760235049186,-500.0,0.00021917,2]
[390965492,1760235049195,-500.0,0.00021917,2]
[390965493,1760235049204,-500.0,0.00021917,2]
[390965494,1760235049213,-500.0,0.00021917,2]
[390965495,1760235049222,-244.95229811,0.00021917,2]
[390965496,1760235049231,-500.0,0.00021917,2]
[390965497,1760235049241,-4040.35507942,0.000334,30]
[390965498,1760235049252,-438.28170347,0.000334,30]
[390965501,1760235089047,150.0,0.00020755,2]
[390965502,1760235089397,150.0,0.00021744,2]
[390965503,1760235108193,-499.99999999,0.00021916,2]
[390965504,1760235108225,-499.99999999,0.00021916,2]
[390965505,1760235131951,275.48332103,0.00030288,120]
[390965506,1760235156262,8000.01000004,0.00021817,2]
[390965507,1760235156287,10000.01,0.00021817,2]
[390965508,1760235156310,10000.01,0.00021817,2]
[390965509,1760235156333,10000.01,0.00021817,2]
[390965510,1760235156355,10000.01,0.00021817,2]
[390965511,1760235156377,10000.01,0.00021817,2]
[390965512,1760235156399,10000.01,0.00021817,2]
[390965513,1760235156422,10000.01,0.00021817,2]
[390965514,1760235156445,10000.01,0.00021817,2]
[390965515,1760235156468,10000.01,0.00021817,2]
[390965516,1760235167336,150.0,0.00020692,2]
[390965517,1760235188595,-150.0,0.00021678,2]
[390965518,1760235188624,-2036.05,0.00021807,10]
[390965519,1760235188654,-1696.71,0.00021807,10]
[390965520,1760235192596,-8579.31453855,0.00021817,2]
[390965521,1760235192691,-10000.01,0.00021817,2]
[390965522,1760235192816,-1413.93,0.00021807,10]
[390965523,1760235192858,-7172.15,0.00021817,2]
[390965524,1760235192929,-10000.01,0.00021817,2]
[390965525,1760235193047,-10000.01,0.00021817,2]
[390965526,1760235193181,-10000.01,0.00021817,2]
[390965527,1760235193420,-10000.01,0.00021817,2]
[390965528,1760235193531,-10000.01,0.00021817,2]
[390965529,1760235196650,-10000.01,0.00021817,2]
[390965530,1760235196766,-10000.01,0.00021817,2]
[390965531,1760235198613,-10000.01,0.00021817,2]
[390965532,1760235199245,300.0,0.000207,2]
[390965533,1760235203029,-10000.01,0.00021817,2]
[390965534,1760235203147,-10000.01,0.00021817,2]
[390965535,1760235203189,277.0,0.00030288,120]
[390965536,1760235203262,-10000.01,0.00021817,2]
[390965537,1760235203405,-10000.01,0.00021817,2]
[390965538,1760235203673,-10000.01,0.00021817,2]
[390965539,1760235203898,-10000.01,0.00021817,2]
[390965540,1760235204015,-10000.01,0.00021817,2]
[390965541,1760235206500,-1178.27,0.00021807,10]
[390965542,1760235206534,-7643.47,0.00021817,2]
[390965543,1760235206598,-10000.01,0.00021817,2]
[390965544,1760235211644,300.0,0.000207,2]
[390965545,1760235218503,-10000.01,0.00021817,2]
[390965546,1760235218620,-10000.01,0.00021817,2]
[390965547,1760235218727,-10000.01,0.00021817,2]
[390965548,1760235218850,-10000.01,0.00021817,2]
[390965549,1760235218992,-10000.01,0.00021817,2]
[390965550,1760235222566,300.0,0.000207,2]
[390965551,1760235223530,-10000.01,0.00021817,2]
[390965552,1760235223646,-10000.01,0.00021817,2]
[390965553,1760235225906,-1395.28453859,0.00021817,2]
[390965554,1760235225929,-7209.44092282,0.00021817,2]
[390965555,1760235235564,150.0,0.00020685,2]
[390965556,1760235236008,150.0,0.0002167,2]
[390965557,1760235237937,912.659149,0.00013699,2]
[390965558,1760235238150,912.659149,0.00020187,2]
[390965559,1760235302219,150.0,0.00020701,2]
[390965560,1760235312387,150.0,0.00021687,2]
[390965561,1760235356062,7574.691702,0.00021817,2]
[390965562,1760235356082,2425.308298,0.00021817,2]
[390965563,1760235377148,7574.701702,0.00021817,2]
[390965564,1760235377168,2425.298298,0.00021817,2]
[390965565,1760235377944,150.0,0.00020703,2]
[390965566,1760235378388,150.0,0.00021689,2]
[390965567,1760235391758,7274.711702,0.00021817,2]
[390965568,1760235391779,2725.288298,0.00021817,2]
[390965569,1760235401230,7274.721702,0.00021817,2]
[390965570,1760235401251,2725.278298,0.00021817,2]
[390965571,1760235410219,7274.731702,0.00021817,2]
[390965572,1760235410240,2725.268298,0.00021817,2]
[390965573,1760235436552,7274.741702,0.00021817,2]
[390965574,1760235436579,2725.258298,0.00021817,2]
[390965575,1760235443362,150.0,0.000207,2]
[390965576,1760235443798,150.0,0.00021686,2]
[390965577,1760235458521,5000.0,0.00021817,2]
[390965578,1760235508308,150.0,0.00020704,2]
[390965579,1760235648817,307.525677,0.00020916,2]
[390965580,1760235673408,666.0,0.00020937,2]
[390965581,1760235810685,851.226025,0.00020957,2]
[390965582,1760235810707,2058.5701506,0.00020957,2]
[390965583,1760236066813,7941.4398494,0.00018,2]
[390965584,1760236066837,10000.01,0.00018,2]
[390965585,1760236066860,10000.01,0.00018,2]
[390965586,1760236066881,10000.01,0.00018,2]
[390965587,1760236066903,10000.01,0.00018,2]
[390965588,1760236066924,10000.01,0.00018,2]
[390965589,1760236066947,10000.01,0.00018,2]
[390965590,1760236066969,9641.21217835,0.00018,2]
[390965591,1760236097688,162.0,0.00024,120]